[Event "German Cup 2019"]
[Site "Magdeburg"]
[Date "2019.05.31"]
[Round "4.1"]
[White "Kopylov, Daniel"]
[Black "Meyer-Dunker, Paul"]
[Result "1-0"]
[ECO "C47"]
[WhiteElo "2263"]
[BlackElo "2062"]
[Annotator "ChessBase"]
[PlyCount "39"]
[EventDate "2019.05.30"]
[EventType "k.o."]
[EventCountry "GER"]
[SourceTitle "playchess.com"]
[Source "ChessBase"]
[SourceQuality "1"]
[TimeControl "40/5400+30:900+30"]

1. e4 {[%emt 0:00:00]} e5 {[%emt 0:00:00]} 2. Nf3 {[%emt 0:00:00]} Nc6 {[%emt 0:00:00]} 3. Nc3 {[%emt 0:00:16]} Nf6 {[%emt 0:00:03]} 4. d4 {[%emt 0:00:06]} exd4 {[%emt 0:00:54]} 5. Nxd4 {[%emt 0:00:08]} Bb4 {[%emt 0:02:26]} 6. Nxc6 {[%emt 0:00:12]} bxc6 {[%emt 0:00:45]} 7. Bd3 {[%emt 0:00:07]} O-O {[%emt 0:02:21]} 8. O-O {[%emt 0:00:11]} Re8 {[%emt 0:00:54]} 9. Bg5 {[%emt 0:01:51]} h6 {[%emt 0:00:35]} 10. Bh4 {[%emt 0:00:27]} Bxc3 {[%emt 0:03:10]} 11. bxc3 {[%emt 0:00:07]} g5 {[%emt 0:02:27]} 12. Bg3 {[%emt 0:03:54]} Nxe4 {[%emt 0:01:27]} 13. Qh5 {[%emt 0:05:39]} Kg7 {[%emt 0:08:08]} 14. Bxe4 {[%emt 0:02:28]} Rxe4 {[%emt 0:01:34]} 15. f4 {[%emt 0:01:03]} f6 {[%emt 0:00:55]} 16. fxg5 {[%emt 0:04:25]} hxg5 {[%emt 0:00:22]} 17. Rae1 {[%emt 0:00:19]} d5 {[%emt 0:01:41]} 18. Rxe4 {[%emt 0:00:30]} dxe4 {[%emt 0:00:02]} 19. Be5 {[%emt 0:00:29]} Bg4 {[%emt 0:02:21]} 20. Qxg5+ {[%emt 0:00:29]} 1-0

[Event "German Cup 2019"]
[Site "Magdeburg"]
[Date "2019.05.31"]
[Round "4.1"]
[White "Uphoff, Lennart"]
[Black "Gressmann, Moritz"]
[Result "0-1"]
[ECO "D20"]
[WhiteElo "2145"]
[BlackElo "2180"]
[Annotator "ChessBase"]
[PlyCount "134"]
[EventDate "2019.05.30"]
[EventType "k.o."]
[EventCountry "GER"]
[SourceTitle "playchess.com"]
[Source "ChessBase"]
[SourceQuality "1"]
[TimeControl "40/5400+30:900+30"]

1. d4 {[%emt 0:00:00]} d5 {[%emt 0:00:00]} 2. c4 {[%emt 0:00:00]} dxc4 {[%emt 0:00:00]} 3. e4 {[%emt 0:00:00]} e5 {[%emt 0:00:00]} 4. Nf3 {[%emt 0:00:15]} exd4 {[%emt 0:00:26]} 5. Bxc4 {[%emt 0:00:26]} c5 {[%emt 0:01:49]} 6. Ne5 {[%emt 0:02:49]} Be6 {[%emt 0:03:01]} 7. Bxe6 {[%emt 0:00:11]} fxe6 {[%emt 0:00:00]} 8. Qh5+ {[%emt 0:00:15]} g6 {[%emt 0:00:06]} 9. Nxg6 {[%emt 0:00:12]} Nf6 {[%emt 0:00:41]} 10. Qh3 {[%emt 0:02:44]} hxg6 {[%emt 0:02:21]} 11. Qxh8 {[%emt 0:00:07]} Nxe4 {[%emt 0:00:41]} 12. O-O {[%emt 0:14:03]} Qf6 {[%emt 0:00:18]} 13. Qxf6 {[%emt 0:04:18]} Nxf6 {[%emt 0:00:01]} 14. Re1 {[%emt 0:00:10]} Kd7 {[%emt 0:02:42]} 15. Nd2 {[%emt 0:06:17]} Nc6 {[%emt 0:00:06]} 16. Ne4 {[%emt 0:06:18]} Nd5 {[%emt 0:05:12]} 17. Bd2 {[%emt 0:04:30]} c4 {[%emt 0:05:37]} 18. Rec1 {[%emt 0:17:46]} Nb6 {[%emt 0:17:22]} 19. f4 {[%emt 0:18:05]} Rc8 {[%emt 0:25:44]} 20. g4 {[%emt 0:03:25]} Bg7 {[%emt 0:06:14]} 21. a4 {[%emt 0:04:35]} Ne7 {[%emt 0:03:42]} 22. Kg2 {[%emt 0:04:09]} Nbd5 {[%emt 0:02:35]} 23. Kf3 {[%emt 0:02:36]} c3 {[%emt 0:03:26]} 24. bxc3 {[%emt 0:00:17]} dxc3 {[%emt 0:00:01]} 25. Be1 {[%emt 0:01:55]} c2 {[%emt 0:00:48]} 26. Ra2 {[%emt 0:00:36]} Nc6 {[%emt 0:00:19]} 27. Nc5+ {[%emt 0:01:54]} Ke7 {[%emt 0:02:39]} 28. Bh4+ {[%emt 0:01:45]} Kf7 {[%emt 0:00:26]} 29. Nxb7 {[%emt 0:00:41]} Nd4+ {[%emt 0:00:47]} 30. Kf2 {[%emt 0:01:35]} Rc3 {[%emt 0:02:06]} 31. Nd8+ {[%emt 0:01:53]} Kg8 {[%emt 0:00:47]} 32. Nxe6 {[%emt 0:00:37]} Nb4 {[%emt 0:00:45]} 33. Raxc2 {[%emt 0:01:23]} Nbxc2 {[%emt 0:06:06]} 34. Nxd4 {[%emt 0:00:36]} Bxd4+ {[%emt 0:00:06]} 35. Ke2 {[%emt 0:00:05]} Be3 {[%emt 0:08:54]} 36. Rb1 {[%emt 0:00:49]} Nd4+ {[%emt 0:00:12]} 37. Kf1 {[%emt 0:00:33]} Bxf4 {[%emt 0:01:15]} 38. Rb4 {[%emt 0:00:36]} Be5 {[%emt 0:00:49]} 39. Bf2 {[%emt 0:00:24]} Rc1+ {[%emt 0:00:41]} 40. Kg2 {[%emt 0:00:05]} Rc2 {[%emt 0:00:37]} 41. Kf1 {[%emt 0:01:28]} Nc6 {[%emt 0:06:17]} 42. Rb7 {[%emt 0:01:01]} Ra2 {[%emt 0:02:36]} 43. Bxa7 {[%emt 0:00:37]} Rxa4 {[%emt 0:00:37]} 44. Rb6 {[%emt 0:00:30]} Nxa7 {[%emt 0:00:35]} 45. Rxg6+ {[%emt 0:00:05]} Kf7 {[%emt 0:00:45]} 46. Rh6 {[%emt 0:00:24]} Rxg4 {[%emt 0:00:41]} 47. Rh7+ {[%emt 0:00:08]} Bg7 {[%emt 0:00:13]} 48. Rh5 {[%emt 0:00:13]} Nc6 {[%emt 0:00:29]} 49. Rf5+ {[%emt 0:00:11]} Kg6 {[%emt 0:00:35]} 50. Rf3 {[%emt 0:00:07]} Be5 {[%emt 0:01:23]} 51. Ke1 {[%emt 0:00:28]} Bxh2 {[%emt 0:01:11]} 52. Kd2 {[%emt 0:00:05]} Bf4+ {[%emt 0:01:24]} 53. Kc3 {[%emt 0:00:08]} Kf5 {[%emt 0:01:54]} 54. Rf1 {[%emt 0:00:16]} Ke4 {[%emt 0:00:27]} 55. Kc4 {[%emt 0:00:07]} Rg5 {[%emt 0:00:34]} 56. Rh1 {[%emt 0:00:16]} Na5+ {[%emt 0:01:31]} 57. Kc3 {[%emt 0:00:12]} Be5+ {[%emt 0:00:45]} 58. Kb4 {[%emt 0:00:06]} Bd6+ {[%emt 0:00:07]} 59. Kc3 {[%emt 0:00:08]} Rg3+ {[%emt 0:00:08]} 60. Kc2 {[%emt 0:00:05]} Be5 {[%emt 0:01:35]} 61. Re1+ {[%emt 0:00:24]} Kd4 {[%emt 0:00:24]} 62. Re2 {[%emt 0:00:12]} Rc3+ {[%emt 0:00:48]} 63. Kb2 {[%emt 0:00:06]} Kd3 {[%emt 0:00:46]} 64. Re1 {[%emt 0:01:05]} Nc4+ {[%emt 0:00:20]} 65. Kb1 {[%emt 0:00:16]} Rb3+ {[%emt 0:00:13]} 66. Kc1 {[%emt 0:00:14]} Bf4+ {[%emt 0:00:07]} 67. Kd1 {[%emt 0:00:06]} Nb2# {[%emt 0:00:41]} 0-1

[Event "German Cup 2019"]
[Site "Magdeburg"]
[Date "2019.06.01"]
[Round "5.1"]
[White "Poetsch, Hagen"]
[Black "Andre, Gordon"]
[Result "0-1"]
[ECO "C18"]
[WhiteElo "2515"]
[BlackElo "2340"]
[Annotator "ChessBase"]
[PlyCount "94"]
[EventDate "2019.05.30"]
[EventType "k.o."]
[EventCountry "GER"]
[SourceTitle "playchess.com"]
[Source "ChessBase"]
[SourceQuality "1"]
[TimeControl "40/5400+30:900+30"]

1. e4 {[%emt 0:00:00]} e6 {[%emt 0:02:39]} 2. d4 {[%emt 0:00:00]} d5 {[%emt 0:00:04]} 3. Nc3 {[%emt 0:00:00]} Bb4 {[%emt 0:00:38]} 4. e5 {[%emt 0:00:03]} c5 {[%emt 0:02:32]} 5. a3 {[%emt 0:00:07]} Ba5 {[%emt 0:00:03]} 6. b4 {[%emt 0:01:04]} cxd4 {[%emt 0:00:18]} 7. Qg4 {[%emt 0:00:11]} Kf8 {[%emt 0:03:41]} 8. Nb5 {[%emt 0:00:08]} Bb6 {[%emt 0:00:49]} 9. Nf3 {[%emt 0:01:28]} Nc6 {[%emt 0:02:17]} 10. Bb2 {[%emt 0:02:15]} Nge7 {[%emt 0:02:19]} 11. Nbxd4 {[%emt 0:00:45]} Nxd4 {[%emt 0:23:03]} 12. Nxd4 {[%emt 0:07:18]} Ng6 {[%emt 0:07:29]} 13. Nf3 {[%emt 0:05:20]} f5 {[%emt 0:13:06]} 14. Qg3 {[%emt 0:07:11]} Bd7 {[%emt 0:05:17]} 15. Bd3 {[%emt 0:04:19]} Qe8 {[%emt 0:02:04]} 16. h4 {[%emt 0:04:23]} Bb5 {[%emt 0:10:34]} 17. h5 {[%emt 0:09:31]} Bxd3 {[%emt 0:02:04]} 18. cxd3 {[%emt 0:04:36]} Ne7 {[%emt 0:00:19]} 19. a4 {[%emt 0:04:50]} a6 {[%emt 0:03:50]} 20. Ng5 {[%emt 0:08:51]} Nc6 {[%emt 0:02:58]} 21. Qf4 {[%emt 0:01:32]} h6 {[%emt 0:05:30]} 22. Nf3 {[%emt 0:00:30]} g5 {[%emt 0:02:20]} 23. hxg6 {[%emt 0:00:45]} Qxg6 {[%emt 0:00:06]} 24. Nh4 {[%emt 0:04:52]} Qf7 {[%emt 0:01:09]} 25. g4 {[%emt 0:04:14]} fxg4 {[%emt 0:00:07]} 26. Ng6+ {[%emt 0:00:37]} Kg7 {[%emt 0:00:10]} 27. Qxf7+ {[%emt 0:00:04]} Kxf7 {[%emt 0:00:05]} 28. Nxh8+ {[%emt 0:00:06]} Rxh8 {[%emt 0:00:06]} 29. b5 {[%emt 0:04:23]} axb5 {[%emt 0:01:09]} 30. axb5 {[%emt 0:00:07]} Nd4 {[%emt 0:01:37]} 31. Ra4 {[%emt 0:02:44]} Nf3+ {[%emt 0:02:57]} 32. Kf1 {[%emt 0:06:00]} d4 {[%emt 0:00:29]} 33. Kg2 {[%emt 0:00:34]} h5 {[%emt 0:00:38]} 34. Kg3 {[%emt 0:04:23]} Kg6 {[%emt 0:02:00]} 35. Rha1 {[%emt 0:04:13]} Bc7 {[%emt 0:00:10]} 36. Ra7 {[%emt 0:01:57]} Bxe5+ {[%emt 0:00:11]} 37. Kg2 {[%emt 0:00:05]} b6 {[%emt 0:01:06]} 38. Rb7 {[%emt 0:01:19]} Rc8 {[%emt 0:02:22]} 39. Rxb6 {[%emt 0:01:41]} Rc2 {[%emt 0:00:04]} 40. Ba3 {[%emt 0:04:29]} h4 {[%emt 0:01:00]} 41. Rxe6+ {[%emt 0:16:32]} Kf5 {[%emt 0:01:18]} 42. Rxe5+ {[%emt 0:00:00]} Nxe5 {[%emt 0:00:43]} 43. b6 {[%emt 0:00:00]} g3 {[%emt 0:07:37]} 44. Kh3 {[%emt 0:00:00]} Rxf2 {[%emt 0:00:11]} 45. Kxh4 {[%emt 0:00:00]} Kf4 {[%emt 0:06:52]} 46. Bc1+ {[%emt 0:00:00]} Kf3 {[%emt 0:00:02]} 47. b7 {[%emt 0:00:00]} Nd7 {[%emt 0:00:38]} 0-1

[Event "German Cup 2019"]
[Site "Magdeburg"]
[Date "2019.06.01"]
[Round "5.1"]
[White "Kueppers, Timo"]
[Black "Kopylov, Michael"]
[Result "0-1"]
[ECO "B01"]
[WhiteElo "2312"]
[BlackElo "2413"]
[Annotator "ChessBase"]
[PlyCount "82"]
[EventDate "2019.05.30"]
[EventType "k.o."]
[EventCountry "GER"]
[SourceTitle "playchess.com"]
[Source "ChessBase"]
[SourceQuality "1"]
[TimeControl "40/5400+30:900+30"]

1. e4 {[%emt 0:00:00]} d5 {[%emt 0:02:03]} 2. exd5 {[%emt 0:00:00]} Qxd5 {[%emt 0:00:05]} 3. Nc3 {[%emt 0:00:00]} Qa5 {[%emt 0:00:43]} 4. d4 {[%emt 0:00:00]} c6 {[%emt 0:00:04]} 5. Nf3 {[%emt 0:00:00]} Nf6 {[%emt 0:00:08]} 6. Bc4 {[%emt 0:00:03]} Bf5 {[%emt 0:00:20]} 7. Bd2 {[%emt 0:01:05]} e6 {[%emt 0:02:05]} 8. Nd5 {[%emt 0:04:01]} Qd8 {[%emt 0:00:18]} 9. Nxf6+ {[%emt 0:00:06]} Qxf6 {[%emt 0:00:14]} 10. Qe2 {[%emt 0:01:07]} Bg4 {[%emt 0:09:37]} 11. d5 {[%emt 0:00:56]} Bxf3 {[%emt 0:09:02]} 12. gxf3 {[%emt 0:00:51]} cxd5 {[%emt 0:00:07]} 13. Bxd5 {[%emt 0:00:24]} Nd7 {[%emt 0:00:31]} 14. O-O-O {[%emt 0:04:36]} O-O-O {[%emt 0:03:22]} 15. Be4 {[%emt 0:00:18]} Nc5 {[%emt 0:03:39]} 16. Bc3 {[%emt 0:07:13]} Qf4+ {[%emt 0:16:28]} 17. Kb1 {[%emt 0:00:08]} Rxd1+ {[%emt 0:05:05]} 18. Rxd1 {[%emt 0:02:25]} Nxe4 {[%emt 0:07:01]} 19. fxe4 {[%emt 0:33:10]} Bd6 {[%emt 0:06:23]} 20. Bxg7 {[%emt 0:03:52]} Rg8 {[%emt 0:00:56]} 21. Bd4 {[%emt 0:02:15]} Qxh2 {[%emt 0:02:58]} 22. Bxa7 {[%emt 0:13:49]} Rg1 {[%emt 0:01:39]} 23. c4 {[%emt 0:00:04]} h5 {[%emt 0:11:22]} 24. Rxg1 {[%emt 0:04:36]} Qxg1+ {[%emt 0:00:18]} 25. Kc2 {[%emt 0:00:00]} Qg6 {[%emt 0:10:28]} 26. c5 {[%emt 0:02:48]} Bc7 {[%emt 0:00:35]} 27. b4 {[%emt 0:00:16]} h4 {[%emt 0:01:06]} 28. b5 {[%emt 0:01:02]} f5 {[%emt 0:04:33]} 29. c6 {[%emt 0:02:47]} fxe4 {[%emt 0:01:35]} 30. Qc4 {[%emt 0:10:45]} e3+ {[%emt 0:00:17]} 31. Kb2 {[%emt 0:00:30]} Be5+ {[%emt 0:01:40]} 32. Ka3 {[%emt 0:02:14]} e2 {[%emt 0:00:13]} 33. Qxe2 {[%emt 0:02:34]} Bd6+ {[%emt 0:00:06]} 34. Ka4 {[%emt 0:00:42]} Qf5 {[%emt 0:00:07]} 35. Bb6 {[%emt 0:02:04]} h3 {[%emt 0:01:14]} 36. f4 {[%emt 0:00:48]} Qxf4+ {[%emt 0:01:38]} 37. Kb3 Qf5 {[%emt 0:00:00]} 38. Bg1 {[%emt 0:00:28]} Qd5+ {[%emt 0:00:13]} 39. Ka4 {[%emt 0:00:51]} bxc6 {[%emt 0:00:24]} 40. b6 {[%emt 0:00:00]} Kb7 {[%emt 0:00:23]} 41. Qf1 {[%emt 0:16:04]} Qxa2# {[%emt 0:01:30]} 0-1

[Event "German Cup 2019"]
[Site "Magdeburg"]
[Date "2019.06.01"]
[Round "5.1"]
[White "Kuberczyk, Christoph"]
[Black "Kopylov, Daniel"]
[Result "1-0"]
[ECO "D79"]
[WhiteElo "2271"]
[BlackElo "2263"]
[Annotator "ChessBase"]
[PlyCount "91"]
[EventDate "2019.05.30"]
[EventType "k.o."]
[EventCountry "GER"]
[SourceTitle "playchess.com"]
[Source "ChessBase"]
[SourceQuality "1"]
[TimeControl "40/5400+30:900+30"]

1. c4 {[%emt 0:00:02]} g6 {[%emt 0:00:40]} 2. d4 {[%emt 0:00:24]} Nf6 {[%emt 0:00:17]} 3. Nf3 {[%emt 0:00:46]} Bg7 {[%emt 0:00:55]} 4. g3 {[%emt 0:03:25]} c6 {[%emt 0:00:36]} 5. Bg2 {[%emt 0:00:45]} d5 {[%emt 0:00:19]} 6. cxd5 {[%emt 0:00:37]} cxd5 {[%emt 0:00:13]} 7. O-O {[%emt 0:00:18]} O-O {[%emt 0:00:22]} 8. Ne5 {[%emt 0:00:36]} Nc6 {[%emt 0:02:09]} 9. Nc3 {[%emt 0:01:20]} e6 {[%emt 0:01:35]} 10. f4 {[%emt 0:01:33]} Ne8 {[%emt 0:08:40]} 11. Be3 {[%emt 0:05:51]} Nd6 {[%emt 0:01:05]} 12. b3 {[%emt 0:04:35]} Nf5 {[%emt 0:14:28]} 13. Bf2 {[%emt 0:05:44]} Nxe5 {[%emt 0:01:40]} 14. dxe5 {[%emt 0:00:38]} g5 {[%emt 0:13:59]} 15. e4 {[%emt 0:03:17]} d4 {[%emt 0:07:11]} 16. exf5 {[%emt 0:09:38]} dxc3 {[%emt 0:01:32]} 17. f6 {[%emt 0:00:14]} Qxd1 {[%emt 0:02:56]} 18. Raxd1 {[%emt 0:04:37]} Bh6 {[%emt 0:00:12]} 19. Bc5 {[%emt 0:00:24]} Re8 {[%emt 0:00:55]} 20. Rd4 {[%emt 0:10:00]} gxf4 {[%emt 0:02:24]} 21. gxf4 {[%emt 0:00:05]} b6 {[%emt 0:06:18]} 22. Ba3 {[%emt 0:03:50]} Rb8 {[%emt 0:01:32]} 23. Rc1 {[%emt 0:01:11]} Ba6 {[%emt 0:03:07]} 24. Rxc3 {[%emt 0:00:16]} Red8 {[%emt 0:01:14]} 25. Bd6 {[%emt 0:03:40]} Rbc8 {[%emt 0:00:13]} 26. Rxc8 {[%emt 0:10:52]} Rxc8 {[%emt 0:00:14]} 27. Be7 {[%emt 0:00:20]} Rc1+ {[%emt 0:07:21]} 28. Kf2 {[%emt 0:00:24]} Rc2+ {[%emt 0:00:04]} 29. Kg3 {[%emt 0:01:24]} Rc3+ {[%emt 0:00:16]} 30. Kg4 {[%emt 0:01:32]} Be2+ {[%emt 0:02:58]} 31. Kh4 {[%emt 0:00:13]} Rc8 {[%emt 0:00:21]} 32. Bb7 {[%emt 0:02:44]} Rb8 {[%emt 0:01:10]} 33. Kg3 {[%emt 0:00:32]} Kh8 {[%emt 0:03:40]} 34. Kf2 {[%emt 0:03:44]} Bh5 {[%emt 0:00:22]} 35. Ke3 {[%emt 0:00:38]} Rg8 {[%emt 0:01:43]} 36. Ba6 {[%emt 0:02:06]} Rg1 {[%emt 0:00:43]} 37. Rd8+ {[%emt 0:00:25]} Rg8 {[%emt 0:00:03]} 38. Rd7 {[%emt 0:00:24]} Ra8 {[%emt 0:00:23]} 39. b4 {[%emt 0:03:08]} Kg8 {[%emt 0:01:03]} 40. b5 {[%emt 0:00:29]} Kh8 {[%emt 0:00:12]} 41. Bb7 {[%emt 0:15:16]} Rg8 {[%emt 0:15:12]} 42. Bc6 {[%emt 0:00:26]} Rg4 {[%emt 0:00:35]} 43. Bf3 {[%emt 0:07:38]} Bxf4+ {[%emt 0:02:04]} 44. Kf2 {[%emt 0:04:03]} h6 {[%emt 0:00:35]} 45. Bxg4 {[%emt 0:00:31]} Bxg4 {[%emt 0:00:06]} 46. Rd4 {[%emt 0:00:31]} 1-0

[Event "German Cup 2019"]
[Site "Magdeburg"]
[Date "2019.06.01"]
[Round "5.1"]
[White "Cofmann, Veaceslav"]
[Black "Mueller, Kai-Markus"]
[Result "1-0"]
[ECO "E11"]
[WhiteElo "2250"]
[BlackElo "2179"]
[Annotator "ChessBase"]
[PlyCount "77"]
[EventDate "2019.05.30"]
[EventType "k.o."]
[EventCountry "GER"]
[SourceTitle "playchess.com"]
[Source "ChessBase"]
[SourceQuality "1"]
[TimeControl "40/5400+30:900+30"]

1. d4 {[%emt 0:00:00]} Nf6 {[%emt 0:00:00]} 2. c4 {[%emt 0:00:00]} e6 {[%emt 0:00:29]} 3. Nf3 {[%emt 0:00:00]} Bb4+ {[%emt 0:00:14]} 4. Bd2 {[%emt 0:00:13]} c5 {[%emt 0:00:50]} 5. Bxb4 {[%emt 0:05:03]} cxb4 {[%emt 0:02:40]} 6. Qb3 {[%emt 0:00:05]} a5 {[%emt 0:05:20]} 7. a3 {[%emt 0:05:41]} Na6 {[%emt 0:04:38]} 8. Nbd2 {[%emt 0:04:09]} d6 {[%emt 0:11:51]} 9. e4 {[%emt 0:01:16]} O-O {[%emt 0:17:37]} 10. Be2 {[%emt 0:02:24]} b6 {[%emt 0:05:15]} 11. O-O {[%emt 0:01:00]} e5 {[%emt 0:01:27]} 12. axb4 {[%emt 0:04:38]} Nxb4 {[%emt 0:04:19]} 13. Qc3 {[%emt 0:03:30]} Bg4 {[%emt 0:12:27]} 14. Rad1 {[%emt 0:01:59]} Qc7 {[%emt 0:03:53]} 15. Qe3 {[%emt 0:03:43]} Nc2 {[%emt 0:03:20]} 16. Qd3 {[%emt 0:00:16]} Nb4 {[%emt 0:00:24]} 17. Qb1 {[%emt 0:00:29]} Rfe8 {[%emt 0:02:15]} 18. b3 {[%emt 0:02:45]} Nc6 {[%emt 0:03:23]} 19. d5 {[%emt 0:03:49]} Nb4 {[%emt 0:01:00]} 20. Rfe1 {[%emt 0:01:54]} Ra7 {[%emt 0:02:52]} 21. Nh4 {[%emt 0:01:43]} Bc8 {[%emt 0:03:43]} 22. Nf1 {[%emt 0:01:12]} Qe7 {[%emt 0:02:26]} 23. Ng3 {[%emt 0:00:54]} g6 {[%emt 0:01:12]} 24. Qc1 {[%emt 0:00:40]} Nfxd5 {[%emt 0:03:45]} 25. Nxg6 {[%emt 0:03:43]} hxg6 {[%emt 0:00:42]} 26. exd5 {[%emt 0:00:09]} Kg7 {[%emt 0:01:09]} 27. f4 {[%emt 0:01:35]} exf4 {[%emt 0:01:20]} 28. Bf3 {[%emt 0:01:21]} Qf8 {[%emt 0:04:06]} 29. Qxf4 {[%emt 0:03:58]} Rxe1+ {[%emt 0:00:33]} 30. Rxe1 {[%emt 0:00:01]} f6 {[%emt 0:00:40]} 31. Re2 {[%emt 0:00:51]} a4 {[%emt 0:00:46]} 32. bxa4 {[%emt 0:00:29]} Rxa4 {[%emt 0:00:04]} 33. Qd4 {[%emt 0:00:07]} Qd8 {[%emt 0:00:39]} 34. Ne4 {[%emt 0:01:47]} Kf7 {[%emt 0:00:27]} 35. Qd1 {[%emt 0:06:15]} Ra5 {[%emt 0:00:42]} 36. Qd2 {[%emt 0:01:23]} Ra1+ {[%emt 0:00:55]} 37. Kf2 {[%emt 0:00:07]} Na6 {[%emt 0:00:33]} 38. Qh6 {[%emt 0:00:31]} Qg8 {[%emt 0:00:32]} 39. Nxd6# {[%emt 0:00:03]} 1-0

[Event "German Cup 2019"]
[Site "Magdeburg"]
[Date "2019.06.01"]
[Round "5.1"]
[White "Steffens, Olaf"]
[Black "Nguyen, Alex Dac-Vuong"]
[Result "0-1"]
[ECO "A00"]
[WhiteElo "2201"]
[BlackElo "2287"]
[Annotator "ChessBase"]
[PlyCount "74"]
[EventDate "2019.05.30"]
[EventType "k.o."]
[EventCountry "GER"]
[SourceTitle "playchess.com"]
[Source "ChessBase"]
[SourceQuality "1"]
[TimeControl "40/5400+30:900+30"]

1. b4 {[%emt 0:00:23]} e5 {[%emt 0:00:00]} 2. a3 {[%emt 0:00:14]} d5 {[%emt 0:00:00]} 3. Bb2 {[%emt 0:00:42]} Nd7 {[%emt 0:00:00]} 4. e3 {[%emt 0:00:40]} Ngf6 {[%emt 0:00:03]} 5. c4 {[%emt 0:00:36]} c6 {[%emt 0:00:07]} 6. Nf3 {[%emt 0:01:03]} Bd6 {[%emt 0:00:08]} 7. Nc3 {[%emt 0:01:58]} Qe7 {[%emt 0:00:12]} 8. d4 {[%emt 0:17:48]} e4 {[%emt 0:04:27]} 9. Nd2 {[%emt 0:00:37]} O-O {[%emt 0:02:19]} 10. g4 {[%emt 0:02:13]} dxc4 {[%emt 0:13:18]} 11. Bxc4 {[%emt 0:12:58]} Nb6 {[%emt 0:01:14]} 12. Be2 {[%emt 0:02:14]} a5 {[%emt 0:06:13]} 13. g5 {[%emt 0:03:27]} Nfd5 {[%emt 0:00:17]} 14. Ncxe4 {[%emt 0:01:07]} axb4 {[%emt 0:00:15]} 15. Nxd6 {[%emt 0:04:39]} Qxd6 {[%emt 0:02:38]} 16. axb4 {[%emt 0:01:14]} Bh3 {[%emt 0:03:26]} 17. Bd3 {[%emt 0:09:24]} Nf4 {[%emt 0:34:51]} 18. exf4 {[%emt 0:07:06]} Rae8+ {[%emt 0:00:07]} 19. Be2 {[%emt 0:09:02]} Qxf4 {[%emt 0:03:52]} 20. Ra3 {[%emt 0:07:15]} Bg2 {[%emt 0:02:04]} 21. Rg1 {[%emt 0:01:07]} Qxh2 {[%emt 0:00:12]} 22. Rxg2 {[%emt 0:01:09]} Qxg2 {[%emt 0:00:24]} 23. Rg3 {[%emt 0:01:19]} Qh1+ {[%emt 0:00:39]} 24. Nf1 {[%emt 0:00:09]} Nd5 {[%emt 0:00:16]} 25. Kd2 {[%emt 0:04:49]} Qh4 {[%emt 0:01:42]} 26. Kc2 {[%emt 0:04:32]} Qf4 {[%emt 0:03:44]} 27. Kb3 {[%emt 0:01:13]} Qxf2 {[%emt 0:04:59]} 28. Bd3 {[%emt 0:00:19]} g6 {[%emt 0:00:48]} 29. Rf3 {[%emt 0:03:05]} Qh4 {[%emt 0:04:00]} 30. Qd2 {[%emt 0:00:34]} f6 {[%emt 0:04:26]} 31. gxf6 {[%emt 0:01:44]} Rxf6 {[%emt 0:00:11]} 32. Rxf6 {[%emt 0:00:09]} Qxf6 {[%emt 0:00:05]} 33. Ka2 {[%emt 0:01:09]} b5 {[%emt 0:01:14]} 34. Ng3 {[%emt 0:00:28]} Qf3 {[%emt 0:00:14]} 35. Nf1 {[%emt 0:00:28]} Qxd3 {[%emt 0:01:36]} 36. Qxd3 {[%emt 0:00:07]} Nxb4+ {[%emt 0:00:05]} 37. Kb3 {[%emt 0:00:10]} Nxd3 {[%emt 0:00:06]} 0-1

[Event "German Cup 2019"]
[Site "Magdeburg"]
[Date "2019.06.01"]
[Round "5.1"]
[White "Gressmann, Moritz"]
[Black "Falk, Kristoffer"]
[Result "1/2-1/2"]
[ECO "B40"]
[WhiteElo "2180"]
[BlackElo "2019"]
[Annotator "ChessBase"]
[PlyCount "91"]
[EventDate "2019.05.30"]
[EventType "k.o."]
[EventCountry "GER"]
[SourceTitle "playchess.com"]
[Source "ChessBase"]
[SourceQuality "1"]
[TimeControl "40/5400+30:900+30"]

1. e4 {[%emt 0:00:00]} c5 {[%emt 0:00:00]} 2. Nf3 {[%emt 0:00:00]} e6 {[%emt 0:00:00]} 3. Nc3 {[%emt 0:01:20]} a6 {[%emt 0:00:03]} 4. a4 {[%emt 0:01:08]} Nc6 {[%emt 0:01:03]} 5. Be2 {[%emt 0:01:22]} Qc7 {[%emt 0:01:23]} 6. O-O {[%emt 0:00:59]} Nf6 {[%emt 0:00:31]} 7. Re1 {[%emt 0:01:36]} Be7 {[%emt 0:01:57]} 8. Bf1 {[%emt 0:01:31]} d6 {[%emt 0:01:16]} 9. h3 {[%emt 0:01:09]} b6 {[%emt 0:01:16]} 10. d3 {[%emt 0:01:58]} Bb7 {[%emt 0:02:38]} 11. Ne2 {[%emt 0:01:50]} O-O {[%emt 0:06:22]} 12. c3 {[%emt 0:08:58]} c4 {[%emt 0:05:14]} 13. Ng3 {[%emt 0:02:12]} cxd3 {[%emt 0:00:20]} 14. Bxd3 {[%emt 0:00:40]} Rfe8 {[%emt 0:04:51]} 15. Nh2 {[%emt 0:11:02]} e5 {[%emt 0:13:35]} 16. Nf5 {[%emt 0:11:57]} Nd8 {[%emt 0:05:28]} 17. Re3 {[%emt 0:14:14]} Ne6 {[%emt 0:03:47]} 18. Ng4 {[%emt 0:04:31]} Kh8 {[%emt 0:08:35]} 19. Nxf6 {[%emt 0:04:51]} Bxf6 {[%emt 0:00:43]} 20. Rg3 {[%emt 0:00:30]} Nf4 {[%emt 0:10:14]} 21. Qg4 {[%emt 0:10:46]} g6 {[%emt 0:02:34]} 22. Bxf4 {[%emt 0:05:16]} exf4 {[%emt 0:00:38]} 23. Qxf4 {[%emt 0:00:11]} Be5 {[%emt 0:02:28]} 24. Qh6 {[%emt 0:00:10]} gxf5 {[%emt 0:07:31]} 25. exf5 {[%emt 0:09:55]} Bxg3 {[%emt 0:04:13]} 26. f6 {[%emt 0:00:36]} Bxf2+ {[%emt 0:00:08]} 27. Kf1 {[%emt 0:02:29]} Bxg2+ {[%emt 0:00:14]} 28. Kxg2 {[%emt 0:00:43]} Rg8+ {[%emt 0:00:50]} 29. Kf1 {[%emt 0:00:59]} Rg6 {[%emt 0:02:36]} 30. Bxg6 {[%emt 0:00:26]} fxg6 {[%emt 0:00:06]} 31. Kxf2 {[%emt 0:00:32]} Qf7 {[%emt 0:00:22]} 32. Qf4 {[%emt 0:00:37]} Rf8 {[%emt 0:01:05]} 33. Qxd6 {[%emt 0:00:47]} Qxf6+ {[%emt 0:00:08]} 34. Qxf6+ {[%emt 0:00:04]} Rxf6+ {[%emt 0:00:08]} 35. Ke3 {[%emt 0:00:57]} Kg7 {[%emt 0:01:04]} 36. b4 {[%emt 0:00:56]} g5 {[%emt 0:00:27]} 37. c4 {[%emt 0:00:46]} Rf4 {[%emt 0:01:27]} 38. Rc1 {[%emt 0:00:20]} Kf6 {[%emt 0:01:00]} 39. c5 bxc5 {[%emt 0:00:14]} 40. bxc5 {[%emt 0:00:34]} Ke7 {[%emt 0:00:12]} 41. Rg1 {[%emt 0:04:45]} Rf5 {[%emt 0:03:11]} 42. Kd4 {[%emt 0:01:20]} Kd7 {[%emt 0:00:49]} 43. Rb1 {[%emt 0:05:13]} Rf4+ {[%emt 0:04:42]} 44. Kd5 {[%emt 0:00:14]} Rf5+ {[%emt 0:00:14]} 45. Kd4 {[%emt 0:00:08]} Rf4+ {[%emt 0:00:05]} 46. Kd5 {[%emt 0:00:06]} 1/2-1/2